fUSD/lending_fUSD_20240829
["ID","MTS","AMOUNT","RATE_DAILY","PERIOD"]
[336547487,1724949041884,-357.11,0.000115,2]
[336547489,1724949041893,-544.16,0.000115,2]
[336547491,1724949041903,-357.11,0.000115,2]
[336547493,1724949041913,-421.7,0.000115,2]
[336547495,1724949041922,-791.25,0.000115,2]
[336547496,1724949041931,-531.85,0.000115,2]
[336547498,1724949041940,-301.09,0.000115,2]
[336547500,1724949041950,-230.22,0.000115,2]
[336547502,1724949041960,-150.0,0.000115,2]
[336547504,1724949041969,-1062.66,0.000115,2]
[336547506,1724949041978,-150.0,0.000115,2]
[336547508,1724949041987,-833.78,0.000115,2]
[336547510,1724949041997,-857.32,0.000115,2]
[336547512,1724949042007,-791.25,0.000115,2]
[336547514,1724949042017,-357.42,0.000115,2]
[336547516,1724949042026,-706.16,0.000115,2]
[336547518,1724949042036,-427.09,0.000115,2]
[336547520,1724949042045,-531.85,0.000115,2]
[336547523,1724949042056,-357.11,0.000115,2]
[336547525,1724949042066,-421.38,0.000115,2]
[336547527,1724949042076,-791.25,0.000115,2]
[336547529,1724949042085,-300.0,0.000115,2]
[336547531,1724949042095,-876.31738169,0.000115,2]
[336547532,1724949042104,-944.74,0.000115,2]
[336547534,1724949042113,-357.11,0.000115,2]
[336547537,1724949042123,-531.85,0.000115,2]
[336547538,1724949042132,-150.0,0.000115,2]
[336547540,1724949042142,-150.0,0.000115,2]
[336547543,1724949042152,-898.57,0.000115,2]
[336547545,1724949042161,-421.7,0.000115,2]
[336547547,1724949042171,-300.0,0.000115,2]
[336547549,1724949042181,-977.94,0.000115,2]
[336547551,1724949042190,-734.67,0.000115,2]
[336547553,1724949042199,-421.7,0.000115,2]
[336547554,1724949042208,-150.93,0.000115,2]
[336547556,1724949042218,-1539.06,0.000115,2]
[336547558,1724949042227,-150.0,0.000115,2]
[336547560,1724949042236,-357.11,0.000115,2]
[336547562,1724949042246,-308.62770015,0.000115,2]
[336547564,1724949042255,-333.42,0.000115,2]
[336547566,1724949042265,-957.81,0.000115,2]
[336547568,1724949042274,-150.0,0.000115,2]
[336547570,1724949042283,-842.33,0.000115,2]
[336547572,1724949042293,-1063.24,0.000115,2]
[336547574,1724949042303,-305.22,0.000115,2]
[336547576,1724949042313,-427.09,0.000115,2]
[336547578,1724949042322,-357.11,0.000115,2]
[336547580,1724949042332,-301.57,0.000115,2]
[336547582,1724949042343,-150.0,0.000115,2]
[336547584,1724949042352,-1133.216,0.000115,2]
[336547586,1724949042361,-1133.216,0.000115,2]
[336547588,1724949042371,-150.0,0.000115,2]
[336547590,1724949042380,-421.73,0.000115,2]
[336547592,1724949042389,-531.85,0.000115,2]
[336547594,1724949042398,-1018.68,0.000115,2]
[336547596,1724949042407,-427.09,0.000115,2]
[336547598,1724949042417,-150.0,0.000115,2]
[336547600,1724949042426,-357.11,0.000115,2]
[336547602,1724949042436,-150.0,0.000115,2]
[336547604,1724949042446,-150.0,0.000115,2]
[336547606,1724949042455,-391.22338398,0.000115,2]
[336547608,1724949042465,-427.09,0.000115,2]
[336547610,1724949042474,-1062.79,0.000115,2]
[336547612,1724949042483,-357.11,0.000115,2]
[336547614,1724949042492,-150.0,0.000115,2]
[336547616,1724949042501,-1152.58,0.000115,2]
[336547618,1724949042511,-331.93,0.000115,2]
[336547620,1724949042521,-150.0,0.000115,2]
[336547622,1724949042530,-150.0,0.000115,2]
[336547624,1724949042539,-150.0,0.000115,2]
[336547626,1724949042548,-150.0,0.000115,2]
[336547628,1724949042558,-427.09,0.000115,2]
[336547630,1724949042567,-150.0,0.000115,2]
[336547632,1724949042577,-357.11,0.000115,2]
[336547634,1724949042586,-790.34,0.000115,2]
[336547636,1724949042595,-531.85,0.000115,2]
[336547638,1724949042604,-150.0,0.000115,2]
[336547640,1724949042613,-150.0,0.000115,2]
[336547642,1724949042622,-150.0,0.000115,2]
[336547644,1724949042632,-150.0,0.000115,2]
[336547646,1724949042644,-427.09,0.000115,2]
[336547648,1724949042654,-531.85,0.000115,2]
[336547650,1724949042663,-150.0,0.000115,2]
[336547652,1724949042672,-1012.77,0.000115,2]
[336547654,1724949042682,-556.98,0.000115,2]
[336547656,1724949042691,-300.0,0.000115,2]
[336547658,1724949042701,-513.89,0.000115,2]
[336547660,1724949042710,-513.89,0.000115,2]
[336547662,1724949042720,-299.92915265,0.000115,2]
[336547664,1724949042730,-150.0,0.000115,2]
[336547665,1724949042739,-150.0,0.000115,2]
[336547668,1724949042749,-150.0,0.000115,2]
[336547670,1724949042758,-150.0,0.000115,2]
[336547671,1724949042767,-713.92,0.000115,2]
[336547673,1724949042777,-791.05,0.000115,2]
[336547675,1724949042786,-427.09,0.000115,2]
[336547677,1724949042795,-1063.56,0.000115,2]
[336547679,1724949042805,-460.76,0.000115,2]
[336547681,1724949042814,-150.0,0.000115,2]
[336547683,1724949042823,-150.0,0.000115,2]
[336547685,1724949042832,-1793.9228,0.000115,2]
[336547687,1724949042841,-1793.9228,0.000115,2]
[336547689,1724949042850,-150.88,0.000115,2]
[336547691,1724949042860,-702.22,0.000115,2]
[336547693,1724949042869,-1582.24,0.000115,2]
[336547695,1724949042879,-357.11,0.000115,2]
[336547697,1724949042888,-427.09,0.000115,2]
[336547699,1724949042897,-150.0,0.000115,2]
[336547701,1724949042906,-531.85,0.000115,2]
[336547703,1724949042915,-150.0,0.000115,2]
[336547705,1724949042924,-150.0,0.000115,2]
[336547707,1724949042933,-713.74,0.000115,2]
[336547709,1724949042943,-421.7,0.000115,2]
[336547711,1724949042952,-531.85,0.000115,2]
[336547713,1724949042961,-3908.2061,0.000115,2]
[336547715,1724949042971,-3908.2061,0.000115,2]
[336547717,1724949042980,-150.29,0.000115,2]
[336547719,1724949042990,-531.85,0.000115,2]
[336547721,1724949042999,-150.0,0.000115,2]
[336547723,1724949043008,-211.82,0.000115,2]
[336547725,1724949043017,-150.24,0.000115,2]
[336547726,1724949043027,-1100.15,0.000115,2]
[336547728,1724949043036,-150.0,0.000115,2]
[336547730,1724949043045,-150.0,0.000115,2]
[336547732,1724949043058,-421.7,0.000115,2]
[336547735,1724949043069,-357.11,0.000115,2]
[336547737,1724949043078,-462.35,0.00011595,2]
[336547740,1724949043088,-672.06,0.00011598,2]
[336547741,1724949043097,-531.85,0.000116,2]
[336547744,1724949043106,-357.11,0.000116,2]
[336547746,1724949043116,-150.0,0.000116,2]
[336547748,1724949043126,-221.54,0.00011608,2]
[336547749,1724949043135,-1196.14329,0.0001162,2]
[336547751,1724949043144,-795.0,0.00011628,2]
[336547753,1724949043154,-163.434,0.00011656,2]
[336547755,1724949043164,-223.07,0.00011659,2]
[336547757,1724949043173,-600.0,0.00011748,2]
[336547759,1724949043183,-500.0,0.00011773,2]
[336547761,1724949043193,-500.0,0.00011773,2]
[336547763,1724949043202,-876.31738169,0.00011788,2]
[336547765,1724949043212,-308.62770015,0.00011788,2]
[336547768,1724949043222,-391.22338398,0.00011788,2]
[336547770,1724949043231,-166.60662299,0.00011797,2]
[336547774,1724949043242,-250000.00000001,0.000118,2]
[336547776,1724949043251,-150.0,0.00011907,2]
[336547778,1724949043261,-600.0,0.00011931,2]
[336547782,1724949043270,-213.548039,0.00011938,2]
[336547786,1724949043280,-213.548039,0.00011938,2]
[336547790,1724949043289,-750.0,0.00012,3]
[336547793,1724949043299,-150.0,0.00012,2]
[336547797,1724949043309,-152.0,0.0001204,2]
[336547799,1724949043318,-213.548039,0.00012055,2]
[336547802,1724949043328,-213.548039,0.00012055,2]
[336547803,1724949043337,-151.0,0.00012055,2]
[336547806,1724949043347,-230.405102,0.00012055,2]
[336547809,1724949043357,-334.363038,0.00012055,2]
[336547811,1724949043366,-230.405102,0.00012055,2]
[336547813,1724949043376,-334.363038,0.00012055,2]
[336547815,1724949043386,-151.408311,0.00012055,2]
[336547817,1724949043395,-151.641858,0.00012055,2]
[336547819,1724949043404,-151.0,0.00012055,2]
[336547821,1724949043414,-232.876837,0.00012055,2]
[336547823,1724949043423,-232.876837,0.00012055,2]
[336547848,1724949043677,-151.0,0.00012055,2]
[336547849,1724949043689,-157.041292,0.00012055,2]
[336547851,1724949043699,-151.0,0.00012055,2]
[336547853,1724949043708,-876.31738169,0.00012076,2]
[336547855,1724949043718,-308.62770015,0.00012076,2]
[336547857,1724949043728,-391.22338398,0.00012076,2]
[336547860,1724949043738,-795.0,0.0001221,2]
[336547862,1724949043747,-1196.14329,0.0001224,2]
[336547864,1724949043756,-163.434,0.00012268,2]
[336547866,1724949043765,-150.0,0.00012314,2]
[336547868,1724949043775,-1005.80481578,0.00012321,2]
[336547870,1724949043784,-1000.0,0.00012321,2]
[336547872,1724949043794,-876.31738169,0.00012364,2]
[336547874,1724949043803,-308.62770015,0.00012364,2]
[336547875,1724949043812,-391.22338398,0.00012364,2]
[336547877,1724949043821,-150.0,0.000125,2]
[336547879,1724949043831,-5467.69281271,0.00012598,2]
[336547881,1724949043840,-529.0,0.0001264,2]
[336547882,1724949043849,-150.0,0.0001264,2]
[336547884,1724949043859,-876.31738169,0.00012652,2]
[336547886,1724949043868,-308.62770015,0.00012652,2]
[336547888,1724949043878,-391.22338398,0.00012652,2]
[336547890,1724949043888,-150.0,0.00012721,2]
[336547892,1724949043897,-795.0,0.0001282,2]
[336547894,1724949043907,-1196.14329,0.0001287,2]
[336547896,1724949043916,-462.35,0.00012884,2]
[336547897,1724949043925,-672.06,0.00012887,2]
[336547899,1724949043935,-221.54,0.00012897,2]
[336547901,1724949043944,-150.8396667,0.000129,2]
[336547903,1724949043954,-186.22651356,0.000129,2]
[336547905,1724949043963,-218.06,0.00012924,2]
[336547907,1724949043972,-876.31738169,0.00012939,2]
[336547909,1724949043981,-308.62770015,0.00012939,2]
[336547911,1724949043991,-391.22338398,0.00012939,2]
[336547913,1724949044000,-163.434,0.00012945,2]
[336547914,1724949044009,-223.07,0.00012954,2]
[336547916,1724949044019,-600.79144725,0.00012973,2]
[336547918,1724949044028,-64443.6901143,0.00012973,2]
[336547920,1724949044037,-213.548039,0.00012991,2]
[336547922,1724949044047,-213.548039,0.00012991,2]
[336547924,1724949044058,-151.0,0.00012991,2]
[336547926,1724949044067,-230.405102,0.00012991,2]
[336547928,1724949044076,-334.363038,0.00012991,2]
[336547930,1724949044086,-230.405102,0.00012991,2]
[336547932,1724949044095,-334.363038,0.00012991,2]
[336547934,1724949044105,-151.0,0.00012991,2]
[336547935,1724949044115,-232.876837,0.00012991,2]
[336547937,1724949044124,-232.876837,0.00012991,2]
[336547939,1724949044134,-151.0,0.00012991,2]
[336547941,1724949044143,-151.0,0.00012991,2]
[336547943,1724949044154,-310.20492999,0.00013,2]
[336547944,1724949044163,-150.0,0.00013,2]
[336547945,1724949044173,-213.548039,0.00013,2]
[336547946,1724949044183,-213.548039,0.00013,2]
[336547947,1724949044193,-151.0,0.00013,2]
[336547948,1724949044206,-230.405102,0.00013,2]
[336547949,1724949044216,-334.363038,0.00013,2]
[336547950,1724949044226,-230.405102,0.00013,2]
[336547951,1724949044236,-334.363038,0.00013,2]
[336547952,1724949044246,-151.0,0.00013,2]
[336547953,1724949044256,-232.876837,0.00013,2]
[336547955,1724949044266,-232.876837,0.00013,2]
[336547956,1724949044276,-157.641369,0.00013,2]
[336547958,1724949044286,-1504.739284,0.00013,2]
[336547961,1724949044296,-152.203652,0.00013,2]
[336547962,1724949044307,-151.0,0.00013,2]
[336547965,1724949044317,-151.0,0.00013,2]
[336547967,1724949044327,-151.0,0.00013,2]
[336547968,1724949044337,-268.853714,0.00013,2]
[336547971,1724949044346,-268.853714,0.00013,2]
[336547973,1724949044357,-151.0,0.00013,2]
[336547975,1724949044366,-151.0,0.00013,2]
[336547977,1724949044376,-151.0,0.00013,2]
[336547978,1724949044386,-448.868842,0.00013,2]
[336547981,1724949044397,-151.0,0.00013,2]
[336547983,1724949044406,-448.868842,0.00013,2]
[336547985,1724949044416,-151.0,0.00013,2]
[336547987,1724949044425,-151.0,0.00013,2]
[336547989,1724949044435,-151.0,0.00013,2]
[336547991,1724949044445,-151.0,0.00013,2]
[336547993,1724949044456,-473.972314,0.00013,2]
[336547995,1724949044465,-473.972314,0.00013,2]
[336547997,1724949044475,-151.319164,0.00013,2]
[336547999,1724949044484,-150.0,0.00013,2]
[336548001,1724949044494,-1146.12512374,0.00013012,2]
[336548003,1724949044503,-3863.13257924,0.00013014,2]
[336548006,1724949044525,-902.63081299,0.00013014,2]
[336548021,1724949044670,-4709.23660777,0.00013014,2]
[336548023,1724949044681,-12992.60949182,0.00013014,2]
[336548025,1724949044693,-512.6831411,0.00013014,2]
[336548039,1724949044824,-14000.0,0.00013014,2]
[336548106,1724949045568,-719.26763437,0.00011018,2]
[336548107,1724949045579,-1140.8915915,0.00011018,2]
[336548108,1724949045592,-1308.53482217,0.00011018,2]
[336548109,1724949045606,-1007.52312096,0.00011018,2]
[336548110,1724949045671,-3123.03131105,0.00011018,2]
[336548113,1724949045683,-6158.75151995,0.00011018,2]
[336548114,1724949045693,-150.0,0.000115,2]
[336548116,1724949045702,-125185.01820074,0.00013014,2]
[336548119,1724949045719,-5169.12813013,0.00013014,2]
[336548121,1724949045730,-800.0,0.00013014,2]
[336548123,1724949045742,-1255.89909902,0.00013014,2]
[336548125,1724949045762,-18850.66193719,0.00013014,2]
[336548126,1724949045772,-166.39250321,0.00013028,2]
[336548127,1724949045781,-16197.0,0.000131,2]
[336548128,1724949045790,-150.0,0.00013129,2]
[336548129,1724949045801,-1500.0,0.00013219,2]
[336548130,1724949045811,-876.31738169,0.00013227,2]
[336548131,1724949045821,-308.62770015,0.00013227,2]
[336548132,1724949045831,-391.22338398,0.00013227,2]
[336548133,1724949045841,-791.25,0.00013288,2]
[336548134,1724949045852,-791.25,0.00013288,2]
[336548135,1724949045863,-791.25,0.00013288,2]
[336548136,1724949045873,-11504.0,0.000134,3]
[336548137,1724949045883,-795.0,0.00013461,2]
[336548138,1724949045893,-1196.14329,0.0001349,2]
[336548139,1724949045905,-150.0,0.000135,2]
[336548140,1724949045915,-876.31738169,0.00013515,2]
[336548141,1724949045925,-308.62770015,0.00013515,2]
[336548142,1724949045935,-391.22338398,0.00013515,2]
[336548143,1724949045945,-150.0,0.00013536,2]
[336548144,1724949045954,-163.434,0.00013694,2]
[336548145,1724949045966,-200.0,0.00013699,2]
[336548146,1724949045977,-2751.0,0.00013699,2]
[336548147,1724949045987,-178.57,0.00013699,2]
[336548148,1724949045997,-500.0,0.000137,2]
[336548149,1724949046008,-500.0,0.000137,2]
[336548150,1724949046019,-500.0,0.000137,2]
[336548151,1724949046030,-500.0,0.000137,2]
[336548152,1724949046041,-500.0,0.000137,2]
[336548153,1724949046145,-500.0,0.00013773,2]
[336548154,1724949046155,-500.0,0.00013773,2]
[336548155,1724949046164,-310.09537593,0.00013773,2]
[336548156,1724949046173,-500.0,0.00013773,2]
[336548157,1724949046183,-150.0,0.0001378,2]
[336548159,1724949046192,-252.980298,0.00013791,2]
[336548160,1724949046203,-151.0,0.00013791,2]
[336548161,1724949046212,-252.980298,0.00013791,2]
[336548162,1724949046222,-213.548039,0.000138,2]
[336548163,1724949046232,-213.548039,0.000138,2]
[336548164,1724949046243,-151.0,0.000138,2]
[336548165,1724949046253,-230.405102,0.000138,2]
[336548166,1724949046263,-334.363038,0.000138,2]
[336548167,1724949046272,-230.405102,0.000138,2]
[336548168,1724949046282,-334.363038,0.000138,2]
[336548169,1724949046292,-151.0,0.000138,2]
[336548170,1724949046301,-233.423988,0.000138,2]
[336548171,1724949046310,-232.876837,0.000138,2]
[336548172,1724949046319,-232.876837,0.000138,2]
[336548173,1724949046328,-232.876837,0.000138,2]
[336548174,1724949046338,-232.876837,0.000138,2]
[336548175,1724949046347,-1504.739284,0.000138,2]
[336548176,1724949046357,-151.0,0.000138,2]
[336548177,1724949046367,-151.0,0.000138,2]
[336548178,1724949046376,-151.0,0.000138,2]
[336548179,1724949046385,-268.853714,0.000138,2]
[336548180,1724949046395,-268.853714,0.000138,2]
[336548181,1724949046404,-151.0,0.000138,2]
[336548182,1724949046413,-151.0,0.000138,2]
[336548183,1724949046422,-252.980298,0.000138,2]
[336548184,1724949046442,-151.0,0.000138,2]
[336548185,1724949046451,-252.980298,0.000138,2]
[336548186,1724949046461,-151.0,0.000138,2]
[336548187,1724949046470,-151.0,0.000138,2]
[336548188,1724949046479,-448.868842,0.000138,2]
[336548189,1724949046489,-448.868842,0.000138,2]
[336548190,1724949046498,-151.0,0.000138,2]
[336548191,1724949046507,-151.0,0.000138,2]
[336548192,1724949046517,-448.868842,0.000138,2]
[336548193,1724949046526,-448.868842,0.000138,2]
[336548194,1724949046535,-151.0,0.000138,2]
[336548195,1724949046545,-151.0,0.000138,2]
[336548196,1724949046556,-151.0,0.000138,2]
[336548197,1724949046574,-151.0,0.000138,2]
[336548198,1724949046584,-151.631407,0.000138,2]
[336548199,1724949046593,-151.0,0.000138,2]
[336548200,1724949046602,-151.0,0.000138,2]
[336548201,1724949046612,-151.0,0.000138,2]
[336548202,1724949046621,-254.064345,0.000138,2]
[336548203,1724949046631,-159.349425,0.000138,2]
[336548204,1724949046644,-151.0,0.000138,2]
[336548205,1724949046654,-151.0,0.000138,2]
[336548206,1724949046663,-151.0,0.000138,2]
[336548207,1724949046673,-151.0,0.000138,2]
[336548208,1724949046683,-290.044215,0.000138,2]
[336548209,1724949046692,-290.044215,0.000138,2]
[336548210,1724949046701,-290.044215,0.000138,2]
[336548211,1724949046710,-290.044215,0.000138,2]
[336548212,1724949046720,-473.972314,0.000138,2]
[336548213,1724949046730,-473.972314,0.000138,2]
[336548214,1724949046740,-151.0,0.000138,2]
[336548215,1724949046749,-227.66511323,0.000138,2]
[336548216,1724949046758,-473.972314,0.000138,2]
[336548217,1724949046768,-473.972314,0.000138,2]
[336548218,1724949046778,-210.07453,0.000138,2]
[336548219,1724949046787,-210.07453,0.000138,2]
[336548220,1724949046797,-151.0,0.000138,2]
[336548221,1724949046810,-151.0,0.000138,2]
[336548222,1724949046820,-210.07453,0.000138,2]
[336548223,1724949046830,-210.07453,0.000138,2]
[336548224,1724949046839,-151.0,0.000138,2]
[336548225,1724949046849,-151.0,0.000138,2]
[336548226,1724949046859,-151.0,0.000138,2]
[336548227,1724949046868,-151.0,0.000138,2]
[336548228,1724949046878,-151.0,0.000138,2]
[336548229,1724949046890,-151.0,0.000138,2]
[336548230,1724949046901,-151.0,0.000138,2]
[336548231,1724949046913,-151.0,0.000138,2]
[336548232,1724949046924,-1794.737045,0.000138,2]
[336548233,1724949046934,-1794.737045,0.000138,2]
[336548234,1724949046947,-1794.737045,0.000138,2]
[336548235,1724949046957,-1794.737045,0.000138,2]
[336548236,1724949046966,-472.598292,0.000138,2]
[336548237,1724949046975,-472.598292,0.000138,2]
[336548238,1724949046985,-151.0,0.000138,2]
[336548239,1724949046995,-151.0,0.000138,2]
[336548240,1724949047004,-472.598292,0.000138,2]
[336548241,1724949047015,-472.598292,0.000138,2]
[336548242,1724949047025,-151.0,0.000138,2]
[336548243,1724949047034,-151.0,0.000138,2]
[336548244,1724949047044,-151.0,0.000138,2]
[336548245,1724949047055,-151.0,0.000138,2]
[336548246,1724949047068,-151.0,0.000138,2]
[336548247,1724949047077,-329.686209,0.000138,2]
[336548248,1724949047086,-151.0,0.000138,2]
[336548249,1724949047096,-329.686209,0.000138,2]
[336548250,1724949047105,-402.187668,0.000138,2]
[336548251,1724949047114,-402.187668,0.000138,2]
[336548252,1724949047123,-329.686209,0.000138,2]
[336548253,1724949047132,-329.686209,0.000138,2]
[336548254,1724949047142,-402.187668,0.000138,2]
[336548255,1724949047156,-402.187668,0.000138,2]
[336548256,1724949047166,-151.0,0.000138,2]
[336548257,1724949047176,-151.0,0.000138,2]
[336548258,1724949047187,-151.0,0.000138,2]
[336548259,1724949047197,-151.0,0.000138,2]
[336548260,1724949047206,-151.0,0.000138,2]
[336548261,1724949047216,-154.079172,0.000138,2]
[336548262,1724949047226,-151.0,0.000138,2]
[336548263,1724949047236,-151.0,0.000138,2]
[336548264,1724949047246,-151.0,0.000138,2]
[336548265,1724949047256,-896.503306,0.000138,2]
[336548266,1724949047266,-151.0,0.000138,2]
[336548267,1724949047276,-896.503306,0.000138,2]
[336548268,1724949047289,-151.0,0.000138,2]
[336548269,1724949047299,-152.574387,0.000138,2]
[336548270,1724949047313,-896.503306,0.000138,2]
[336548271,1724949047324,-896.503306,0.000138,2]
[336548272,1724949047335,-151.0,0.000138,2]
[336548273,1724949047345,-151.0,0.000138,2]
[336548274,1724949047355,-329.156747,0.000138,2]
[336548275,1724949047364,-329.156747,0.000138,2]
[336548276,1724949047374,-329.156747,0.000138,2]
[336548277,1724949047384,-329.156747,0.000138,2]
[336548278,1724949047393,-151.0,0.000138,2]
[336548279,1724949047403,-479.95639,0.000138,2]
[336548280,1724949047413,-479.95639,0.000138,2]
[336548281,1724949047423,-292.479469,0.000138,2]
[336548282,1724949047433,-151.0,0.000138,2]
[336548283,1724949047443,-151.0,0.000138,2]
[336548284,1724949047453,-151.0,0.000138,2]
[336548285,1724949047463,-151.0,0.000138,2]
[336548286,1724949047473,-187.658836,0.000138,2]
[336548287,1724949047483,-151.0,0.000138,2]
[336548288,1724949047493,-151.0,0.000138,2]
[336548289,1724949047503,-3867.37188,0.000138,2]
[336548290,1724949047513,-3867.37188,0.000138,2]
[336548291,1724949047524,-388.158802,0.000138,2]
[336548292,1724949047533,-388.158802,0.000138,2]
[336548293,1724949047543,-151.0,0.000138,2]
[336548294,1724949047552,-151.0,0.000138,2]
[336548295,1724949047563,-1042.694844,0.000138,2]
[336548296,1724949047573,-1042.694844,0.000138,2]
[336548297,1724949047583,-151.0,0.000138,2]
[336548298,1724949047592,-151.0,0.000138,2]
[336548299,1724949047601,-151.0,0.000138,2]
[336548300,1724949047611,-287.873081,0.000138,2]
[336548301,1724949047621,-1729.176474,0.000138,2]
[336548302,1724949047632,-1729.176474,0.000138,2]
[336548303,1724949047647,-287.873081,0.000138,2]
[336548304,1724949047657,-1729.176474,0.000138,2]
[336548305,1724949047667,-1729.176474,0.000138,2]
[336548306,1724949047677,-1616.165888,0.000138,2]
[336548307,1724949047689,-1616.165888,0.000138,2]
[336548308,1724949047699,-1616.165888,0.000138,2]
[336548309,1724949047708,-1616.165888,0.000138,2]
[336548310,1724949047719,-151.0,0.000138,2]
[336548311,1724949047730,-151.0,0.000138,2]
[336548312,1724949047741,-1564.103994,0.000138,2]
[336548313,1724949047750,-1564.103994,0.000138,2]
[336548314,1724949047759,-211.486748,0.000138,2]
[336548315,1724949047768,-211.486748,0.000138,2]
[336548316,1724949047777,-151.0,0.000138,2]
[336548317,1724949047787,-151.0,0.000138,2]
[336548318,1724949047797,-151.0,0.000138,2]
[336548319,1724949047806,-291.674461,0.000138,2]
[336548320,1724949047816,-151.0,0.000138,2]
[336548321,1724949047825,-291.674461,0.000138,2]
[336548322,1724949047835,-3027.020311,0.000138,2]
[336548323,1724949047843,-3027.020311,0.000138,2]
[336548324,1724949047852,-225.489387,0.000138,2]
[336548325,1724949047861,-151.0,0.000138,2]
[336548326,1724949047870,-973.645574,0.000138,2]
[336548327,1724949047880,-225.489387,0.000138,2]
[336548328,1724949047890,-151.0,0.000138,2]
[336548329,1724949047899,-973.645574,0.000138,2]
[336548330,1724949047908,-151.0,0.000138,2]
[336548331,1724949047918,-1769.16067,0.000138,2]
[336548332,1724949047927,-1769.16067,0.000138,2]
[336548333,1724949047936,-151.0,0.000138,2]
[336548334,1724949047946,-72409.99266431,0.000138,2]
[336548335,1724949048818,-19845.38618389,0.000138,2]
[336548336,1724949048828,-151.0,0.000138,2]
[336548337,1724949048838,-788.121559,0.000138,2]
[336548338,1724949048848,-151.0,0.000138,2]
[336548339,1724949048857,-788.121559,0.000138,2]
[336548340,1724949048867,-275.63931,0.000138,2]
[336548341,1724949048876,-151.0,0.000138,2]
[336548342,1724949048886,-275.63931,0.000138,2]
[336548343,1724949048896,-151.0,0.000138,2]
[336548344,1724949048906,-10000.0,0.000138,2]
[336548345,1724949048916,-10000.0,0.000138,2]
[336548346,1724949048926,-10000.0,0.000138,2]
[336548347,1724949048935,-10000.0,0.000138,2]
[336548348,1724949048945,-10000.0,0.000138,2]
[336548349,1724949048954,-205.895933,0.000138,2]
[336548350,1724949048964,-10000.0,0.000138,2]
[336548351,1724949048973,-205.895933,0.000138,2]
[336548352,1724949048982,-151.0,0.000138,2]
[336548353,1724949048992,-151.0,0.000138,2]
[336548354,1724949049001,-151.0,0.000138,2]
[336548355,1724949049011,-151.0,0.000138,2]
[336548356,1724949049021,-151.110675,0.000138,2]
[336548357,1724949049030,-151.110675,0.000138,2]
[336548358,1724949049040,-189.337992,0.000138,2]
[336548359,1724949049049,-11504.0,0.000138,5]
[336548360,1724949049059,-189.337992,0.000138,2]